fUSD/lending_fUSD_20241107
["ID","MTS","AMOUNT","RATE_DAILY","PERIOD"]
[341599578,1731017447092,-413.97778512,0.00027397,2]
[341599626,1731017447598,-673.81524331,0.00027397,2]
[341599628,1731017447608,-500.0,0.00027397,2]
[341599630,1731017447619,-1180.68,0.00027397,2]
[341599632,1731017447628,-500.0,0.00027397,2]
[341599634,1731017447638,-90.80025621,0.00027397,2]
[341599636,1731017447650,-428.466928,0.00027397,2]
[341599638,1731017447660,-500.0,0.00027397,2]
[341599640,1731017447669,-646.28,0.00027397,2]
[341599642,1731017447679,-546.07,0.00027397,2]
[341599644,1731017447688,-500.0,0.00027397,2]
[341599646,1731017447697,-593.27,0.00027397,2]
[341599648,1731017447707,-151.0,0.00027397,7]
[341599650,1731017447717,-500.0,0.00027397,2]
[341599652,1731017447726,-1236.91,0.00027397,2]
[341599654,1731017447735,-150.0,0.00027397,2]
[341599656,1731017447749,-865.24,0.00027397,2]
[341599657,1731017447758,-500.0,0.00027397,2]
[341599659,1731017447768,-500.0,0.00027397,2]
[341599661,1731017447778,-587.66,0.00027397,2]
[341599664,1731017447787,-500.0,0.00027397,2]
[341599666,1731017447801,-2262.77,0.00027397,2]
[341599668,1731017447811,-834.42,0.00027397,2]
[341599670,1731017447822,-500.0,0.00027397,2]
[341599672,1731017447831,-500.0,0.00027397,2]
[341599674,1731017447843,-500.0,0.00027397,2]
[341599676,1731017447852,-500.0,0.00027397,2]
[341599677,1731017447861,-500.0,0.00027397,2]
[341599680,1731017447872,-1388.013072,0.00027397,2]
[341599682,1731017447888,-207.926928,0.00027397,2]
[341599684,1731017447899,-151.0,0.00027397,7]
[341599686,1731017447908,-399.493596,0.00027397,2]
[341599689,1731017447923,-1588.72414878,0.00027397,2]
[341599691,1731017447939,-486.34225522,0.00027397,2]
[341599693,1731017447948,-500.0,0.00027397,2]
[341599695,1731017447957,-500.0,0.00027397,2]
[341599697,1731017447966,-154.147926,0.00027397,2]
[341599699,1731017447976,-500.0,0.00027397,2]
[341599701,1731017447985,-1519.2,0.00027397,2]
[341599703,1731017447996,-567.92,0.00027397,2]
[341599704,1731017448006,-500.0,0.00027397,2]
[341599706,1731017448015,-151.0,0.00027397,7]
[341599708,1731017448025,-5.29459248,0.00027397,2]
[341599711,1731017448041,-201.15475275,0.00027397,2]
[341599713,1731017448056,-500.0,0.00027397,2]
[341599715,1731017448066,-500.0,0.00027397,2]
[341599717,1731017448076,-500.0,0.00027397,2]
[341599719,1731017448086,-4699.71,0.00027397,2]
[341599721,1731017448096,-635.83,0.00027397,2]
[341599723,1731017448106,-1090.54,0.00027397,2]
[341599725,1731017448116,-500.0,0.00027397,2]
[341599727,1731017448125,-767.51,0.00027397,2]
[341599729,1731017448135,-500.0,0.00027397,2]
[341599731,1731017448145,-548.86,0.00027397,2]
[341599733,1731017448155,-584.96,0.00027397,2]
[341599734,1731017448164,-500.0,0.00027397,2]
[341599736,1731017448174,-1492.91,0.00027397,2]
[341599738,1731017448183,-500.0,0.00027397,2]
[341599740,1731017448193,-585.92,0.00027397,2]
[341599742,1731017448202,-500.0,0.00027397,2]
[341599743,1731017448213,-500.0,0.00027397,2]
[341599744,1731017448223,-500.0,0.00027397,2]
[341599745,1731017448233,-500.0,0.00027397,2]
[341599746,1731017448247,-500.0,0.00027397,2]
[341599747,1731017448258,-770.79,0.00027397,2]
[341599748,1731017448268,-151.0,0.00027397,7]
[341599749,1731017448278,-151.0,0.00027397,7]
[341599750,1731017448289,-757.3,0.00027397,2]
[341599751,1731017448299,-500.0,0.00027397,2]
[341599752,1731017448309,-620.74,0.00027397,2]
[341599753,1731017448321,-704.24,0.00027397,2]
[341599755,1731017448331,-500.0,0.00027397,2]
[341599757,1731017448340,-500.0,0.00027397,2]
[341599759,1731017448351,-500.0,0.00027397,2]
[341599761,1731017448361,-500.0,0.00027397,2]
[341599764,1731017448372,-500.0,0.00027397,2]
[341599766,1731017448381,-500.0,0.00027397,2]
[341599768,1731017448392,-3444.95,0.00027397,2]
[341599770,1731017448401,-862.29,0.00027397,2]
[341599771,1731017448411,-1326.859697,0.00027397,7]
[341599773,1731017448421,-500.0,0.00027397,2]
[341599775,1731017448431,-500.0,0.00027397,2]
[341599777,1731017448441,-500.0,0.00027397,2]
[341599779,1731017448450,-500.0,0.00027397,2]
[341599781,1731017448460,-151.0,0.00027397,7]
[341599783,1731017448470,-643.8,0.00027397,2]
[341599785,1731017448480,-151.0,0.00027397,7]
[341599787,1731017448489,-1956.95,0.00027397,2]
[341599789,1731017448503,-1326.859697,0.00027397,7]
[341599792,1731017448513,-621.22,0.00027397,2]
[341599794,1731017448522,-151.0,0.00027397,7]
[341599796,1731017448534,-500.0,0.00027397,2]
[341599798,1731017448544,-6.76643207,0.00027397,7]
[341599801,1731017448564,-144.23356793,0.00027397,7]
[341599803,1731017448574,-500.0,0.00027397,2]
[341599805,1731017448584,-500.0,0.00027397,2]
[341599807,1731017448594,-754.93983207,0.00027397,2]
[341599809,1731017448606,-63.79016793,0.00027397,2]
[341599811,1731017448615,-362.52947982,0.00027397,2]
[341599820,1731017448697,-146.59228123,0.00027397,2]
[341599823,1731017448715,-0.75823895,0.00027397,2]
[341599824,1731017448724,-512.1,0.00027397,2]
[341599826,1731017448734,-500.0,0.00027397,2]
[341599828,1731017448747,-500.0,0.00027397,2]
[341599830,1731017448757,-4143.45,0.00027397,2]
[341599832,1731017448767,-500.0,0.00027397,2]
[341599834,1731017448776,-377.33308453,0.00027397,2]
[341599837,1731017448793,-515.02691547,0.00027397,2]
[341599839,1731017448804,-500.0,0.00027397,2]
[341599841,1731017448814,-500.0,0.00027397,2]
[341599843,1731017448824,-708.86,0.00027397,2]
[341599845,1731017448833,-500.0,0.00027397,2]
[341599847,1731017448843,-500.0,0.00027397,2]
[341599849,1731017448852,-500.0,0.00027397,2]
[341599851,1731017448862,-274.77914714,0.00027397,2]
[341599853,1731017448872,-500.0,0.00027397,2]
[341599855,1731017448883,-500.0,0.00027397,2]
[341599857,1731017448893,-868.33,0.00027397,2]
[341599859,1731017448902,-416.42207795,0.00027397,2]
[341599861,1731017448914,-83.57792205,0.00027397,2]
[341599863,1731017448923,-623.41,0.00027397,2]
[341599865,1731017448933,-500.0,0.00027397,2]
[341599867,1731017448943,-500.0,0.00027397,2]
[341599869,1731017448952,-208.86207795,0.00027397,2]
[341599876,1731017461248,300.0,0.00019725,2]
[341599877,1731017461688,150.0,0.00018123,2]
[341599936,1731017641501,150.0,0.00019725,2]
[341599937,1731017641522,150.0,0.00019725,2]
[341599938,1731017748010,154.97,0.00015342,2]
[341599941,1731017804056,150.0,0.00017,2]
[341599942,1731017804079,150.0,0.00017,2]
[341599943,1731017804101,150.0,0.00017,2]
[341599944,1731017804123,150.0,0.00017,2]
[341599945,1731017804145,600.0,0.00017,2]
[341599946,1731017840932,1600.0,0.00017,3]
[341599947,1731018123268,251.58,0.00024759,120]
[341599949,1731018300454,-3056.21384,0.00020795,2]
[341599951,1731018310955,-450.0,0.00021,2]
[341599952,1731018333430,-360.0,0.0002117,2]
[341599953,1731018347714,-3778.81616,0.0002164,2]
[341599954,1731018353694,-5249.69769684,0.0002164,2]
[341599955,1731018353717,-360.0,0.0002174,2]
[341599956,1731018361168,-360.0,0.0002231,2]
[341599957,1731018361190,-1390.19,0.00022739,2]
[341599958,1731018361212,-360.0,0.0002288,2]
[341599959,1731018361234,-2280.11230316,0.0002288,2]
[341599960,1731018367554,-3057.09769684,0.0002288,2]
[341599961,1731018367580,-1530.53,0.0002288,2]
[341599962,1731018367602,-500.0,0.00023,2]
[341599963,1731018367623,-631.94,0.00023,2]
[341599964,1731018377451,-360.0,0.0002345,2]
[341599965,1731018377474,-3920.43230316,0.0002345,2]
[341599968,1731018383498,-6079.55769684,0.0002345,2]
[341599969,1731018383520,-152.38,0.00023503,2]
[341599970,1731018383542,-972.41245682,0.00024,2]
[341599971,1731018384791,156.66,0.00015342,2]
[341599972,1731018389976,-360.0,0.0002402,2]
[341599973,1731018390002,-738.83,0.00024101,2]
[341599974,1731018390025,-738.83,0.00024489,2]
[341599975,1731018390048,-183.21,0.00024502,2]
[341599976,1731018390070,-360.0,0.0002459,2]
[341599977,1731018390094,-164.3,0.0002462,2]
[341599978,1731018390115,-93.81984634,0.00024666,2]
[341599979,1731018396759,-156.18015366,0.00024666,2]
[341599980,1731018396781,-250.0,0.00024679,2]
[341599981,1731018396803,-210.84,0.00024707,2]
[341599982,1731018396825,-200.0,0.00024718,2]
[341599983,1731018396846,-1084.85,0.00024758,2]
[341599984,1731018396868,-200.0,0.00024759,2]
[341599985,1731018396890,-200.0,0.00024779,2]
[341599986,1731018396913,-738.83,0.00024876,2]
[341599987,1731018396935,-550.0,0.00025,2]
[341599988,1731018402192,-1390.19,0.00025003,2]
[341599989,1731018402215,-941.84064119,0.00025087,2]
[341599990,1731018402241,-4077.26920515,0.00025097,2]
[341599991,1731018409736,-229.00994869,0.0002211,2]
[341599992,1731018416364,-9770.99005131,0.00025097,2]
[341599993,1731018424307,-10000.0,0.00025097,2]
[341599994,1731018428130,-51.74074354,0.00025097,2]
[341599995,1731018428151,-360.0,0.0002516,2]
[341599996,1731018428173,-230.86,0.00025177,2]
[341599997,1731018428195,-207.66,0.00025205,2]
[341599998,1731018428217,-738.83,0.00025263,2]
[341599999,1731018428238,-250.0,0.00025455,2]
[341600000,1731018428261,-156.7,0.00025461,2]
[341600001,1731018428284,-156.7,0.00025524,2]
[341600002,1731018428305,-159.96,0.00025551,30]
[341600003,1731018428327,-156.7,0.00025588,2]
[341600004,1731018428349,-738.83,0.0002565,2]
[341600005,1731018428370,-156.7,0.00025652,2]
[341600006,1731018428392,-156.7,0.00025715,2]
[341600007,1731018428412,-360.0,0.0002573,2]
[341600008,1731018428433,-210.84,0.00025943,2]
[341600009,1731018428455,-1800.0,0.00026,27]
[341600010,1731018428477,-738.83,0.00026038,2]
[341600011,1731018428851,-500.0,0.00026164,7]
[341600012,1731018428873,-600.0,0.00026164,7]
[341600013,1731018428894,-360.0,0.000263,2]
[341600014,1731018428915,-154.97,0.00026401,2]
[341600015,1731018428936,-738.83,0.00026425,2]
[341600016,1731018428956,-165.01,0.00026527,2]
[341600017,1731018428979,-417.24,0.00026531,120]
[341600018,1731018429001,-738.83,0.00026812,2]
[341600019,1731018429022,-360.0,0.0002687,2]
[341600020,1731018429047,-600.0,0.00026986,7]
[341600021,1731018429069,-507.1346,0.00026997,2]
[341600022,1731018429097,-238.13049101,0.00026997,2]
[341600023,1731018433185,10000.0,0.000225,2]
[341600024,1731018442983,-10000.0,0.00022,2]
[341600025,1731018454112,-5629.85060039,0.00022,2]
[341600026,1731018467338,-10000.0,0.00022,2]
[341600027,1731018473955,-10000.0,0.00022,2]
[341600028,1731018480773,-10000.0,0.00022,2]
[341600029,1731018488675,-10000.0,0.00022,2]
[341600030,1731018495613,-9550.0,0.00022,2]
[341600036,1731018527237,150.0,0.0002,2]
[341600037,1731018527258,150.0,0.0002,2]
[341600038,1731018527278,67.79823582,0.0002,2]
[341600041,1731018546082,-1137.44263802,0.00021,2]
[341600042,1731018546107,-187.6818224,0.00021,2]
[341600043,1731018546129,-4474.61290703,0.0002152,2]
[341600044,1731018546153,-4738.62138332,0.00022,2]
[341600045,1731018546173,-244.17616494,0.00022,2]
[341600046,1731018546194,-1140.39203266,0.00022,2]
[341600047,1731018546217,-20143.14768379,0.000225,2]
[341600048,1731018546241,-266.40981163,0.0002301,2]
[341600049,1731018546263,-25706.63878184,0.000232,2]
[341600053,1731018551109,-23314.7811271,0.000232,2]
[341600054,1731018551131,-565.58937786,0.0002322,2]
[341600055,1731018551152,-1663.8326341,0.00023922,2]
[341600057,1731018555261,-6893.286484,0.00023922,2]
[341600058,1731018555287,-6009.76504632,0.00023922,2]
[341600059,1731018557113,-29369.18038282,0.00023922,2]
[341600060,1731018558120,-5685.53057226,0.00023922,2]
[341600061,1731018566234,-18175.32010717,0.00023922,2]
[341600062,1731018567092,-2941.859844,0.00023922,2]
[341600066,1731018574120,-1185.21077814,0.00023922,2]
[341600067,1731018574145,-900.0,0.00023972,2]
[341600068,1731018574164,-775.78091628,0.0002402,2]
[341600069,1731018574185,-401.55656011,0.0002421,2]
[341600070,1731018574205,-3519.85196483,0.0002421,2]
[341600087,1731018631859,-900.0,0.00025068,7]
[341600088,1731018631868,-194.7,0.000253,2]
[341600089,1731018631877,-900.0,0.0002589,7]
[341600090,1731018631886,-250.0,0.00026071,2]
[341600091,1731018631896,-158.13,0.00026153,2]
[341600092,1731018631906,-500.0,0.00026164,7]
[341600093,1731018631915,-500.0,0.00026164,7]
[341600094,1731018631925,-542.42,0.00026259,2]
[341600095,1731018631934,-23900.0,0.00026265,2]
[341600096,1731018631944,-151.96,0.0002651,30]
[341600097,1731018631953,-900.0,0.00026712,7]
[341600098,1731018631962,-2103.2236,0.00026897,2]
[341600099,1731018631972,-263.2444,0.00026897,2]
[341600100,1731018631982,-1357.62421103,0.00026897,2]
[341600101,1731018632018,-1515.10416,0.00026897,2]
[341600102,1731018632124,-958.80212897,0.00026897,2]
[341600103,1731018632133,-500.0,0.00026986,7]
[341600104,1731018632142,-1425.93980899,0.00026997,2]
[341600105,1731018632152,-1000.0,0.00026997,2]
[341600106,1731018632163,-2500.0,0.00026997,2]
[341600107,1731018632173,-3356.52317645,0.00026997,2]
[341600108,1731018632182,-532.00224795,0.00027,14]
[341600109,1731018632192,-600.0,0.00027,2]
[341600110,1731018632201,-1608.07164065,0.00027096,2]
[341600111,1731018632213,-6293.75045505,0.00027096,2]
[341600112,1731018632222,-10214.3156109,0.00027097,2]
[341600113,1731018632234,-854.497992,0.00027097,2]
[341600114,1731018637931,-888.11412877,0.00027097,2]
[341600115,1731018637954,-4473.06322101,0.00027097,2]
[341600116,1731018637967,-83570.00904732,0.00027097,2]
[341600117,1731018637978,-4434.3029,0.00027097,2]
[341600118,1731018637989,-1721.6934,0.00027097,2]
[341600119,1731018637999,-1234.892,0.00027122,15]
[341600120,1731018638010,-150.110806,0.00027198,2]
[341600121,1731018638021,-5018.0,0.000272,2]
[341600122,1731018638031,-2000.0,0.00027223,5]
[341600123,1731018638042,-1390.19,0.00027267,2]
[341600124,1731018638054,-2000.0,0.00027268,5]
[341600125,1731018638065,-156.59,0.00027275,2]
[341600126,1731018638075,-200.0,0.00027297,2]
[341600127,1731018638086,-3984.2875,0.00027297,2]
[341600128,1731018638099,-10587.4325,0.00027297,2]
[341600129,1731018638109,-156.50648472,0.00027297,2]
[341600130,1731018638123,-150.110806,0.00027298,3]
[341600131,1731018638134,-1000.0,0.000273,2]
[341600132,1731018638144,-1000.0,0.000273,2]
[341600133,1731018638155,-1035.0,0.000273,2]
[341600134,1731018638168,-2000.0,0.00027314,5]
[341600135,1731018638179,-3356.52317639,0.0002732,2]
[341600136,1731018638190,-2000.0,0.00027359,5]
[341600137,1731018638200,-492.93292266,0.00027368,2]
[341600138,1731018638211,-500.0,0.00027373,2]
[341600139,1731018638222,-500.0,0.00027373,2]
[341600140,1731018638234,-9640.7825103,0.00027385,2]
[341600141,1731018638244,-3214.6341124,0.00027385,2]
[341600142,1731018638255,-219.94872669,0.00027387,2]
[341600143,1731018638266,-500.0,0.00027396,2]
[341600144,1731018638276,-500.0,0.00027396,2]
[341600145,1731018638286,-533.72049936,0.00027396,2]
[341600146,1731018638296,-500.0,0.00027396,2]
[341600147,1731018638307,-500.0,0.00027396,2]
[341600148,1731018638318,-500.0,0.00027396,2]
[341600149,1731018638329,-500.0,0.00027397,2]
[341600150,1731018638339,-154.147921,0.00027397,2]
[341600151,1731018638350,-150.557649,0.00027397,2]
[341600152,1731018638360,-173.87438048,0.00027397,2]
[341600153,1731018638371,-500.0,0.00027397,2]
[341600154,1731018638381,-500.0,0.00027397,2]
[341600155,1731018638392,-1053.57,0.00027397,2]
[341600156,1731018638402,-500.0,0.00027397,2]
[341600157,1731018638412,-500.0,0.00027397,2]
[341600158,1731018638423,-500.0,0.00027397,2]
[341600159,1731018638433,-293.395845,0.00027397,2]
[341600160,1731018638445,-500.0,0.00027397,2]
[341600162,1731018638455,-157.950213,0.00027397,2]
[341600164,1731018638465,-153.1758,0.00027397,2]
[341600166,1731018638476,-500.0,0.00027397,2]
[341600167,1731018638486,-667.97,0.00027397,2]
[341600168,1731018638497,-500.0,0.00027397,2]
[341600169,1731018638508,-565.6,0.00027397,2]
[341600170,1731018638518,-267.44014988,0.00027397,2]
[341600171,1731018638529,-500.0,0.00027397,2]
[341600172,1731018638539,-500.0,0.00027397,2]
[341600173,1731018638550,-859.38,0.00027397,2]
[341600174,1731018638561,-500.0,0.00027397,2]
[341600175,1731018638571,-500.0,0.00027397,2]
[341600176,1731018638582,-500.0,0.00027397,2]
[341600177,1731018638593,-210.11042679,0.00027397,2]
[341600178,1731018638604,-500.0,0.00027397,2]
[341600179,1731018638615,-604.03,0.00027397,2]
[341600180,1731018638625,-500.0,0.00027397,2]
[341600181,1731018638637,-500.0,0.00027397,2]
[341600182,1731018638648,-500.0,0.00027397,2]
[341600183,1731018638659,-150.496932,0.00027397,2]
[341600184,1731018638670,-500.0,0.00027397,2]
[341600185,1731018638681,-500.0,0.00027397,2]
[341600186,1731018638692,-500.0,0.00027397,2]
[341600187,1731018638703,-500.0,0.00027397,2]
[341600188,1731018638713,-500.0,0.00027397,2]
[341600189,1731018638724,-500.0,0.00027397,2]
[341600190,1731018638735,-500.0,0.00027397,2]
[341600191,1731018638745,-500.0,0.00027397,2]
[341600192,1731018638755,-500.0,0.00027397,2]
[341600193,1731018638766,-605.59,0.00027397,2]
[341600194,1731018638777,-511.5,0.00027397,2]
[341600195,1731018638787,-500.0,0.00027397,2]
[341600196,1731018638797,-500.0,0.00027397,2]
[341600197,1731018638807,-275.93356561,0.00027397,2]
[341600198,1731018638818,-1211.08,0.00027397,2]
[341600199,1731018638829,-500.0,0.00027397,2]
[341600200,1731018638839,-500.0,0.00027397,2]
[341600201,1731018638850,-500.0,0.00027397,2]
[341600202,1731018638860,-500.0,0.00027397,2]
[341600203,1731018638871,-500.0,0.00027397,2]
[341600204,1731018638881,-500.0,0.00027397,2]
[341600205,1731018638892,-500.0,0.00027397,2]
[341600206,1731018638902,-500.0,0.00027397,2]
[341600207,1731018638912,-500.0,0.00027397,2]
[341600208,1731018638923,-500.0,0.00027397,2]
[341600209,1731018638933,-500.0,0.00027397,2]
[341600210,1731018638944,-500.0,0.00027397,2]
[341600211,1731018638954,-660.59,0.00027397,2]
[341600212,1731018638965,-500.0,0.00027397,2]
[341600213,1731018638975,-1545.2,0.00027397,2]
[341600214,1731018638985,-662.49,0.00027397,2]
[341600215,1731018638995,-500.0,0.00027397,2]
[341600216,1731018639006,-741.71,0.00027397,2]
[341600217,1731018639016,-500.0,0.00027397,2]
[341600218,1731018639027,-500.0,0.00027397,2]
[341600219,1731018639038,-500.0,0.00027397,2]
[341600220,1731018639049,-500.0,0.00027397,2]
[341600221,1731018639060,-500.0,0.00027397,2]
[341600222,1731018639070,-527.76,0.00027397,2]
[341600223,1731018639080,-1327.98,0.00027397,2]
[341600224,1731018639091,-500.0,0.00027397,2]
[341600225,1731018639101,-500.0,0.00027397,2]
[341600226,1731018639111,-500.0,0.00027397,2]
[341600227,1731018639122,-500.0,0.00027397,2]
[341600228,1731018639132,-672.94,0.00027397,2]
[341600229,1731018639143,-507.15929118,0.00027397,2]
[341600230,1731018639153,-500.0,0.00027397,2]
[341600231,1731018639166,-500.0,0.00027397,2]
[341600232,1731018639177,-500.0,0.00027397,2]
[341600233,1731018639187,-500.0,0.00027397,2]
[341600234,1731018639198,-160.0285236,0.00027397,2]
[341600240,1731018640202,-339.9714764,0.00027397,2]
[341600242,1731018640219,-500.0,0.00027397,2]
[341600244,1731018640228,-500.0,0.00027397,2]
[341600245,1731018640238,-500.0,0.00027397,2]
[341600247,1731018640247,-500.0,0.00027397,2]
[341600249,1731018640256,-618.14018858,0.00027397,2]
[341600250,1731018640265,-500.0,0.00027397,2]
[341600251,1731018640275,-500.0,0.00027397,2]
[341600252,1731018640284,-500.0,0.00027397,2]
[341600253,1731018640293,-510.56,0.00027397,2]
[341600254,1731018640302,-500.0,0.00027397,2]
[341600256,1731018640311,-602.91420016,0.00027397,2]
[341600257,1731018640320,-500.0,0.00027397,2]
[341600258,1731018640329,-500.0,0.00027397,2]
[341600259,1731018640338,-500.0,0.00027397,2]
[341600260,1731018640346,-500.0,0.00027397,2]
[341600261,1731018640356,-500.0,0.00027397,2]
[341600262,1731018640365,-500.0,0.00027397,2]
[341600263,1731018640374,-500.0,0.00027397,2]
[341600264,1731018640383,-500.0,0.00027397,2]
[341600265,1731018640393,-500.0,0.00027397,2]
[341600266,1731018640403,-500.0,0.00027397,2]
[341600267,1731018640412,-500.0,0.00027397,2]
[341600268,1731018640421,-417.27307691,0.00027397,2]
[341600269,1731018640430,-556.03,0.00027397,2]
[341600270,1731018640439,-500.0,0.00027397,2]
[341600271,1731018640448,-756.69,0.00027397,2]
[341600272,1731018640458,-500.0,0.00027397,2]
[341600273,1731018640467,-600.47,0.00027397,2]
[341600274,1731018640476,-500.0,0.00027397,2]
[341600275,1731018640485,-500.0,0.00027397,2]
[341600276,1731018640495,-500.0,0.00027397,2]
[341600277,1731018640504,-500.0,0.00027397,2]
[341600278,1731018640513,-500.0,0.00027397,2]
[341600279,1731018640522,-626.22,0.00027397,2]
[341600280,1731018640531,-185.00583322,0.00027397,2]
[341600281,1731018640541,-500.0,0.00027397,2]
[341600282,1731018640549,-500.0,0.00027397,2]
[341600283,1731018640558,-500.0,0.00027397,2]
[341600284,1731018640567,-549.62,0.00027397,2]
[341600285,1731018640577,-500.0,0.00027397,2]
[341600286,1731018640586,-500.0,0.00027397,2]
[341600287,1731018640595,-500.0,0.00027397,2]
[341600288,1731018640605,-270.62051046,0.00027397,2]
[341600289,1731018640614,-500.0,0.00027397,2]
[341600290,1731018640623,-500.0,0.00027397,2]
[341600291,1731018640632,-335.29973532,0.00027397,2]
[341600292,1731018640641,-500.0,0.00027397,2]
[341600293,1731018640650,-500.0,0.00027397,2]
[341600294,1731018640659,-500.0,0.00027397,2]
[341600295,1731018640668,-500.0,0.00027397,2]
[341600296,1731018640677,-500.0,0.00027397,2]
[341600297,1731018640687,-500.0,0.00027397,2]
[341600298,1731018640696,-602.64319548,0.00027397,2]
[341600299,1731018640705,-500.0,0.00027397,2]
[341600300,1731018640714,-615.3,0.00027397,2]
[341600301,1731018640724,-500.0,0.00027397,2]
[341600302,1731018640733,-500.0,0.00027397,2]
[341600303,1731018640743,-548.63,0.00027397,2]
[341600304,1731018640751,-500.0,0.00027397,2]
[341600305,1731018640761,-500.0,0.00027397,2]
[341600306,1731018640771,-855.18,0.00027397,2]
[341600307,1731018640779,-553.54,0.00027397,2]
[341600308,1731018640788,-767.42,0.00027397,2]
[341600309,1731018640798,-200.0,0.00027397,2]
[341600310,1731018640807,-476.74367654,0.00027397,2]
[341600311,1731018640816,-500.0,0.00027397,2]
[341600312,1731018640825,-555.41,0.00027397,2]
[341600313,1731018640835,-500.0,0.00027397,2]
[341600314,1731018640844,-1433.02,0.00027397,2]
[341600315,1731018640853,-500.0,0.00027397,2]
[341600316,1731018640862,-500.0,0.00027397,2]
[341600317,1731018640871,-500.0,0.00027397,2]
[341600318,1731018640879,-500.0,0.00027397,2]
[341600319,1731018640889,-500.0,0.00027397,2]
[341600320,1731018640897,-500.0,0.00027397,2]
[341600321,1731018640906,-500.0,0.00027397,2]
[341600322,1731018640915,-609.33,0.00027397,2]
[341600323,1731018640924,-606.33,0.00027397,2]
[341600324,1731018640933,-341.27058128,0.00027397,2]
[341600325,1731018640942,-500.0,0.00027397,2]
[341600326,1731018640951,-500.0,0.00027397,2]
[341600327,1731018640960,-500.0,0.00027397,2]
[341600328,1731018640969,-500.0,0.00027397,2]
[341600329,1731018640978,-500.0,0.00027397,2]
[341600330,1731018640987,-500.0,0.00027397,2]
[341600331,1731018640996,-500.0,0.00027397,2]
[341600332,1731018641005,-500.0,0.00027397,2]
[341600333,1731018641014,-767.18,0.00027397,2]
[341600334,1731018641023,-500.0,0.00027397,2]
[341600335,1731018641032,-344.10232958,0.00027397,2]
[341600336,1731018641042,-500.0,0.00027397,2]
[341600337,1731018641052,-500.0,0.00027397,2]
[341600338,1731018641061,-500.0,0.00027397,2]
[341600339,1731018641070,-500.0,0.00027397,2]
[341600340,1731018641079,-500.0,0.00027397,2]
[341600341,1731018641088,-500.0,0.00027397,2]
[341600342,1731018641097,-500.0,0.00027397,2]
[341600343,1731018641107,-500.0,0.00027397,2]
[341600344,1731018641116,-1713.54,0.00027397,2]
[341600345,1731018641125,-500.0,0.00027397,2]
[341600346,1731018641134,-500.0,0.00027397,2]
[341600347,1731018641143,-500.0,0.00027397,2]
[341600348,1731018641152,-500.0,0.00027397,2]
[341600349,1731018641165,-500.0,0.00027397,2]
[341600350,1731018641174,-500.0,0.00027397,2]
[341600351,1731018641184,-587.64,0.00027397,2]
[341600352,1731018641193,-500.000001,0.00027397,2]
[341600353,1731018641203,-534.53,0.00027397,2]
[341600354,1731018641212,-503.65,0.00027397,2]
[341600355,1731018641221,-593.49,0.00027397,2]
[341600356,1731018641231,-500.0,0.00027397,2]
[341600357,1731018641242,-715.49,0.00027397,2]
[341600358,1731018641251,-500.0,0.00027397,2]